[Event "Titled Tuesday Blitz December 7 2021"]
[White "Bacrot, Etienne"]
[Black "Kosteniuk, Alexandra"]
[WhiteFideId "605506"]
[BlackFideId "4128125"]
[WhiteElo "2789"]
[BlackElo "2647"]
[Result "1/2-1/2"]
[Round "08"]
[TimeControl "180+1"]
[Date "2021.12.07"]
[WhiteClock "0:00:06"]
[BlackClock "0:00:10"]

1. c4 {[%clk 0:03:00]}  Nf6 {[%clk 0:02:59]} 2. Nc3 {[%clk 0:02:59]}  e5 {[%clk 0:02:58]} 3. h3 {[%clk 0:02:59]}  c6 {[%clk 0:02:53]} 4. g4 {[%clk 0:02:54]}  Bb4 {[%clk 0:02:50]} 5. g5 {[%clk 0:02:53]}  Ng8 {[%clk 0:02:43]} 6. Nf3 {[%clk 0:02:52]}  d6 {[%clk 0:02:41]} 7. d3 {[%clk 0:02:42]}  Ne7 {[%clk 0:02:40]} 8. Bg2 {[%clk 0:02:39]}  Nf5 {[%clk 0:02:36]} 9. h4 {[%clk 0:02:37]}  Be6 {[%clk 0:02:30]} 10. Bd2 {[%clk 0:02:35]}  Ba5 {[%clk 0:02:24]} 11. h5 {[%clk 0:02:34]}  Nd7 {[%clk 0:02:22]} 12. Bh3 {[%clk 0:02:13]}  Qe7 {[%clk 0:02:10]} 13. Rb1 {[%clk 0:01:48]}  Nd4 {[%clk 0:01:54]} 14. b4 {[%clk 0:01:19]}  Nxf3+ {[%clk 0:01:51]} 15. exf3 {[%clk 0:01:19]}  Bc7 {[%clk 0:01:51]} 16. h6 {[%clk 0:01:19]}  g6 {[%clk 0:01:47]} 17. Qb3 {[%clk 0:01:08]}  O-O {[%clk 0:01:37]} 18. Kf1 {[%clk 0:01:00]}  a5 {[%clk 0:01:31]} 19. a3 {[%clk 0:00:57]}  axb4 {[%clk 0:01:30]} 20. axb4 {[%clk 0:00:57]}  Ra6 {[%clk 0:01:12]} 21. Kg2 {[%clk 0:00:55]}  f6 {[%clk 0:01:05]} 22. gxf6 {[%clk 0:00:41]}  Qxf6 {[%clk 0:00:58]} 23. Bxe6+ {[%clk 0:00:41]}  Qxe6 {[%clk 0:00:58]} 24. Be3 {[%clk 0:00:40]}  Qf5 {[%clk 0:00:49]} 25. Rh3 {[%clk 0:00:26]}  Qxd3 {[%clk 0:00:48]} 26. b5 {[%clk 0:00:25]}  Raa8 {[%clk 0:00:37]} 27. Rd1 {[%clk 0:00:24]}  Qf5 {[%clk 0:00:36]} 28. c5+ {[%clk 0:00:21]}  d5 {[%clk 0:00:33]} 29. Nxd5 {[%clk 0:00:21]}  cxd5 {[%clk 0:00:34]} 30. Qxd5+ {[%clk 0:00:21]}  Rf7 {[%clk 0:00:28]} 31. Qxb7 {[%clk 0:00:21]}  Raf8 {[%clk 0:00:25]} 32. Qxc7 {[%clk 0:00:20]}  e4 {[%clk 0:00:26]} 33. Qg3 {[%clk 0:00:14]}  exf3+ {[%clk 0:00:25]} 34. Kh2 {[%clk 0:00:13]}  Ne5 {[%clk 0:00:25]} 35. Rh4 {[%clk 0:00:13]}  Nd3 {[%clk 0:00:17]} 36. b6 {[%clk 0:00:13]}  Nxc5 {[%clk 0:00:16]} 37. Bxc5 {[%clk 0:00:12]}  Qxc5 {[%clk 0:00:17]} 38. Rb1 {[%clk 0:00:10]}  Rb7 {[%clk 0:00:16]} 39. Rhb4 {[%clk 0:00:10]}  Qh5+ {[%clk 0:00:15]} 40. Qh3 {[%clk 0:00:10]}  Qxh3+ {[%clk 0:00:12]} 41. Kxh3 {[%clk 0:00:10]}  Rf6 {[%clk 0:00:12]} 42. Kg4 {[%clk 0:00:10]}  Kf7 {[%clk 0:00:12]} 43. R1b3 {[%clk 0:00:10]}  Ke7 {[%clk 0:00:08]} 44. Re3+ {[%clk 0:00:09]}  Kd7 {[%clk 0:00:08]} 45. Rxf3 {[%clk 0:00:09]}  Rbxb6 {[%clk 0:00:07]} 46. Rxb6 {[%clk 0:00:08]}  Rxb6 {[%clk 0:00:08]} 47. Rf7+ {[%clk 0:00:09]}  Ke6 {[%clk 0:00:08]} 48. Rxh7 {[%clk 0:00:09]}  Rb5 {[%clk 0:00:09]} 49. f4 {[%clk 0:00:09]}  Rh5 {[%clk 0:00:09]} 50. Rh8 {[%clk 0:00:08]}  Kf7 {[%clk 0:00:09]} 51. Kg3 {[%clk 0:00:06]}  Kf6 {[%clk 0:00:08]} 52. Kf3 {[%clk 0:00:05]}  Kf7 {[%clk 0:00:09]} 53. Ke4 {[%clk 0:00:05]}  Rh1 {[%clk 0:00:09]} 54. Ke5 {[%clk 0:00:04]}  Re1+ {[%clk 0:00:09]} 55. Kd6 {[%clk 0:00:04]}  Rd1+ {[%clk 0:00:09]} 56. Kc5 {[%clk 0:00:04]}  Rc1+ {[%clk 0:00:09]} 57. Kd4 {[%clk 0:00:04]}  Rd1+ {[%clk 0:00:10]} 58. Ke3 {[%clk 0:00:05]}  Re1+ {[%clk 0:00:10]} 59. Kd4 {[%clk 0:00:04]}  Rd1+ {[%clk 0:00:11]} 60. Ke4 {[%clk 0:00:05]}  Re1+ {[%clk 0:00:11]} 61. Kf3 {[%clk 0:00:06]}  Rh1 {[%clk 0:00:11]} 62. Kg2 {[%clk 0:00:06]}  Rh5 {[%clk 0:00:11]} 63. Kg3 {[%clk 0:00:05]}  Rh1 {[%clk 0:00:11]} 64. Kf2 {[%clk 0:00:06]}  Rh5 {[%clk 0:00:10]} 65. Ke3 {[%clk 0:00:06]}  Rh1 {[%clk 0:00:10]} 66. Kd4 {[%clk 0:00:06]}  Rd1+ {[%clk 0:00:10]} 1/2-1/2


[Site "https://www.chess.com"]

[Event "Titled Tuesday Blitz December 7 2021"]
[White "Budrewicz, Krzysztof"]
[Black "Seletsky, Grigory"]
[WhiteFideId "1127950"]
[BlackFideId "14112191"]
[WhiteElo "2554"]
[BlackElo "2430"]
[Result "1/2-1/2"]
[Round "08"]
[TimeControl "180+1"]
[Date "2021.12.07"]
[WhiteClock "0:00:29"]
[BlackClock "0:00:39"]

1. d4 {[%clk 0:03:00]}  e6 {[%clk 0:02:56]} 2. c4 {[%clk 0:02:59]}  d5 {[%clk 0:02:56]} 3. Nc3 {[%clk 0:02:59]}  c6 {[%clk 0:02:54]} 4. Nf3 {[%clk 0:02:56]}  Nf6 {[%clk 0:02:53]} 5. Bg5 {[%clk 0:02:56]}  Be7 {[%clk 0:02:52]} 6. e3 {[%clk 0:02:56]}  O-O {[%clk 0:02:52]} 7. Qc2 {[%clk 0:02:56]}  Nbd7 {[%clk 0:02:50]} 8. Rd1 {[%clk 0:02:55]}  b6 {[%clk 0:02:49]} 9. Bd3 {[%clk 0:02:55]}  Bb7 {[%clk 0:02:49]} 10. cxd5 {[%clk 0:02:55]}  cxd5 {[%clk 0:02:47]} 11. O-O {[%clk 0:02:53]}  h6 {[%clk 0:02:46]} 12. Bh4 {[%clk 0:02:53]}  Rc8 {[%clk 0:02:44]} 13. Qe2 {[%clk 0:02:53]}  Ne4 {[%clk 0:02:41]} 14. Bxe7 {[%clk 0:02:51]}  Qxe7 {[%clk 0:02:41]} 15. Bxe4 {[%clk 0:02:51]}  dxe4 {[%clk 0:02:41]} 16. Nd2 {[%clk 0:02:51]}  f5 {[%clk 0:02:41]} 17. a3 {[%clk 0:02:50]}  Nf6 {[%clk 0:02:36]} 18. Qb5 {[%clk 0:02:45]}  Nd5 {[%clk 0:02:32]} 19. Rc1 {[%clk 0:02:44]}  Nxc3 {[%clk 0:02:25]} 20. bxc3 {[%clk 0:02:38]}  Qxa3 {[%clk 0:02:13]} 21. Qd7 {[%clk 0:02:33]}  Bd5 {[%clk 0:02:13]} 22. c4 {[%clk 0:02:30]}  Rfd8 {[%clk 0:02:08]} 23. Qb5 {[%clk 0:02:25]}  Bc6 {[%clk 0:02:02]} 24. Qe5 {[%clk 0:02:25]}  Qd6 {[%clk 0:02:00]} 25. Qxd6 {[%clk 0:02:25]}  Rxd6 {[%clk 0:01:59]} 26. Ra1 {[%clk 0:02:26]}  Rc7 {[%clk 0:01:53]} 27. g3 {[%clk 0:02:23]}  Kf7 {[%clk 0:01:49]} 28. h4 {[%clk 0:02:22]}  Kf6 {[%clk 0:01:46]} 29. Rfb1 {[%clk 0:02:22]}  e5 {[%clk 0:01:43]} 30. d5 {[%clk 0:02:13]}  Bd7 {[%clk 0:01:40]} 31. Ra2 {[%clk 0:02:12]}  b5 {[%clk 0:01:36]} 32. cxb5 {[%clk 0:02:11]}  Rxd5 {[%clk 0:01:36]} 33. b6 {[%clk 0:02:07]}  axb6 {[%clk 0:01:34]} 34. Rxb6+ {[%clk 0:02:06]}  Rc6 {[%clk 0:01:26]} 35. Rxc6+ {[%clk 0:02:06]}  Bxc6 {[%clk 0:01:26]} 36. Kf1 {[%clk 0:01:50]}  Bb5+ {[%clk 0:01:25]} 37. Ke1 {[%clk 0:01:50]}  Bd3 {[%clk 0:01:25]} 38. Rb2 {[%clk 0:01:44]}  Ra5 {[%clk 0:01:22]} 39. Nb3 {[%clk 0:01:43]}  Rb5 {[%clk 0:01:19]} 40. Kd2 {[%clk 0:01:22]}  Bc4 {[%clk 0:01:13]} 41. Kc3 {[%clk 0:01:22]}  Bxb3 {[%clk 0:01:13]} 42. Rxb3 {[%clk 0:01:22]}  Rxb3+ {[%clk 0:01:12]} 43. Kxb3 {[%clk 0:01:23]}  g5 {[%clk 0:01:10]} 44. Kc4 {[%clk 0:00:33]}  gxh4 {[%clk 0:01:08]} 45. gxh4 {[%clk 0:00:34]}  f4 {[%clk 0:01:04]} 46. Kd5 {[%clk 0:00:33]}  Kf5 {[%clk 0:01:04]} 47. h5 {[%clk 0:00:33]}  fxe3 {[%clk 0:00:51]} 48. fxe3 {[%clk 0:00:33]}  Kg4 {[%clk 0:00:46]} 49. Kxe4 {[%clk 0:00:32]}  Kxh5 {[%clk 0:00:46]} 50. Kxe5 {[%clk 0:00:33]}  Kg4 {[%clk 0:00:45]} 51. Kf6 {[%clk 0:00:26]}  h5 {[%clk 0:00:45]} 52. e4 {[%clk 0:00:26]}  h4 {[%clk 0:00:45]} 53. e5 {[%clk 0:00:27]}  h3 {[%clk 0:00:45]} 54. e6 {[%clk 0:00:27]}  h2 {[%clk 0:00:45]} 55. e7 {[%clk 0:00:28]}  h1=Q {[%clk 0:00:44]} 56. e8=Q {[%clk 0:00:29]}  Qh4+ {[%clk 0:00:40]} 57. Kf7 {[%clk 0:00:28]}  Qh5+ {[%clk 0:00:39]} 58. Ke7 {[%clk 0:00:29]}  Qxe8+ {[%clk 0:00:39]} 59. Kxe8 {[%clk 0:00:29]} 1/2-1/2


[Site "https://www.chess.com"]

[Event "Titled Tuesday Blitz December 7 2021"]
[White "Bueno, Alfeu Junior Varela"]
[Black "Stankovic, Ivan G"]
[WhiteFideId "2108879"]
[BlackFideId "902837"]
[WhiteElo "2225"]
[BlackElo "2195"]
[Result "0-1"]
[Round "08"]
[TimeControl "180+1"]
[Date "2021.12.07"]
[WhiteClock "0:00:02"]
[BlackClock "0:00:12"]

1. e4 {[%clk 0:03:00]}  c5 {[%clk 0:02:40]} 2. Nc3 {[%clk 0:03:00]}  Nc6 {[%clk 0:02:38]} 3. f4 {[%clk 0:03:00]}  e6 {[%clk 0:02:38]} 4. Nf3 {[%clk 0:03:01]}  Nf6 {[%clk 0:02:37]} 5. Bb5 {[%clk 0:03:01]}  Qc7 {[%clk 0:02:28]} 6. Bxc6 {[%clk 0:02:57]}  Qxc6 {[%clk 0:02:28]} 7. d3 {[%clk 0:02:58]}  d6 {[%clk 0:02:27]} 8. O-O {[%clk 0:02:58]}  Be7 {[%clk 0:02:28]} 9. Qe1 {[%clk 0:02:56]}  b5 {[%clk 0:02:28]} 10. Qg3 {[%clk 0:02:46]}  b4 {[%clk 0:02:25]} 11. Ne2 {[%clk 0:02:45]}  Nh5 {[%clk 0:02:22]} 12. Qh3 {[%clk 0:02:27]}  g6 {[%clk 0:02:22]} 13. Be3 {[%clk 0:02:19]}  f5 {[%clk 0:02:16]} 14. exf5 {[%clk 0:01:40]}  exf5 {[%clk 0:01:57]} 15. Nd2 {[%clk 0:01:34]}  Bf6 {[%clk 0:01:48]} 16. Nc4 {[%clk 0:01:34]}  O-O {[%clk 0:01:46]} 17. Rae1 {[%clk 0:01:30]}  Be6 {[%clk 0:01:45]} 18. b3 {[%clk 0:01:29]}  Rae8 {[%clk 0:01:42]} 19. Ng3 {[%clk 0:01:27]}  Ng7 {[%clk 0:01:34]} 20. Kh1 {[%clk 0:01:22]}  d5 {[%clk 0:01:34]} 21. Ne5 {[%clk 0:01:20]}  Bxe5 {[%clk 0:01:34]} 22. fxe5 {[%clk 0:01:21]}  f4 {[%clk 0:01:35]} 23. Qh6 {[%clk 0:01:13]}  fxe3 {[%clk 0:01:33]} 24. Qxe3 {[%clk 0:01:03]}  d4 {[%clk 0:01:19]} 25. Qg5 {[%clk 0:00:57]}  Rxf1+ {[%clk 0:01:15]} 26. Rxf1 {[%clk 0:00:56]}  Bd5 {[%clk 0:01:14]} 27. Rf6 {[%clk 0:00:43]}  Bxg2+ {[%clk 0:01:14]} 28. Kg1 {[%clk 0:00:43]}  Qd5 {[%clk 0:01:14]} 29. Rd6 {[%clk 0:00:35]}  Qb7 {[%clk 0:01:10]} 30. Ne2 {[%clk 0:00:17]}  Qf3 {[%clk 0:00:44]} 31. Qxg2 {[%clk 0:00:16]}  Qe3+ {[%clk 0:00:39]} 32. Qf2 {[%clk 0:00:13]}  Qxe5 {[%clk 0:00:39]} 33. Rd7 {[%clk 0:00:10]}  Qg5+ {[%clk 0:00:20]} 34. Kh1 {[%clk 0:00:07]}  Rf8 {[%clk 0:00:21]} 35. Qg2 {[%clk 0:00:04]}  Qd2 {[%clk 0:00:19]} 36. Ng1 {[%clk 0:00:03]}  Qf4 {[%clk 0:00:13]} 37. Qd5+ {[%clk 0:00:02]}  Kh8 {[%clk 0:00:12]} 0-1


[Site "https://www.chess.com"]

[Event "Titled Tuesday Blitz December 7 2021"]
[White "Daniel, Damian"]
[Black "Hamley, Ryan"]
[WhiteFideId "1183621"]
[BlackFideId "30959497"]
[WhiteElo "2433"]
[BlackElo "2559"]
[Result "1/2-1/2"]
[Round "08"]
[TimeControl "180+1"]
[Date "2021.12.07"]
[WhiteClock "0:00:07"]
[BlackClock "0:00:06"]

1. Nf3 {[%clk 0:03:00]}  g6 {[%clk 0:02:59]} 2. c4 {[%clk 0:02:59]}  Bg7 {[%clk 0:03:00]} 3. Nc3 {[%clk 0:02:59]}  c5 {[%clk 0:02:59]} 4. g3 {[%clk 0:02:55]}  b6 {[%clk 0:02:59]} 5. Bg2 {[%clk 0:02:56]}  Bb7 {[%clk 0:02:59]} 6. O-O {[%clk 0:02:56]}  Nf6 {[%clk 0:02:58]} 7. Re1 {[%clk 0:02:55]}  Nc6 {[%clk 0:02:51]} 8. d4 {[%clk 0:02:52]}  cxd4 {[%clk 0:02:47]} 9. Nxd4 {[%clk 0:02:53]}  O-O {[%clk 0:02:47]} 10. h3 {[%clk 0:02:30]}  Rc8 {[%clk 0:02:43]} 11. Be3 {[%clk 0:02:28]}  Na5 {[%clk 0:02:39]} 12. Bxb7 {[%clk 0:02:24]}  Nxb7 {[%clk 0:02:39]} 13. b3 {[%clk 0:02:24]}  d5 {[%clk 0:02:40]} 14. Nxd5 {[%clk 0:02:20]}  Nxd5 {[%clk 0:02:37]} 15. cxd5 {[%clk 0:02:21]}  Qxd5 {[%clk 0:02:38]} 16. Qd2 {[%clk 0:01:58]}  Rfd8 {[%clk 0:02:35]} 17. Rad1 {[%clk 0:01:57]}  Qh5 {[%clk 0:02:34]} 18. Qb4 {[%clk 0:01:47]}  Nd6 {[%clk 0:02:06]} 19. h4 {[%clk 0:01:37]}  Rc7 {[%clk 0:01:59]} 20. Nb5 {[%clk 0:01:25]}  Rcd7 {[%clk 0:01:53]} 21. Nxd6 {[%clk 0:01:05]}  Rxd6 {[%clk 0:01:53]} 22. Rxd6 {[%clk 0:01:05]}  Rxd6 {[%clk 0:01:54]} 23. Qa4 {[%clk 0:01:00]}  Bc3 {[%clk 0:00:57]} 24. Rc1 {[%clk 0:00:53]}  Bf6 {[%clk 0:00:33]} 25. Qxa7 {[%clk 0:00:47]}  Qxe2 {[%clk 0:00:31]} 26. Bh6 {[%clk 0:00:47]}  Rd1+ {[%clk 0:00:22]} 27. Rxd1 {[%clk 0:00:45]}  Qxd1+ {[%clk 0:00:23]} 28. Kh2 {[%clk 0:00:41]}  Qd8 {[%clk 0:00:22]} 29. a4 {[%clk 0:00:35]}  Bg7 {[%clk 0:00:21]} 30. Be3 {[%clk 0:00:31]}  Bd4 {[%clk 0:00:21]} 31. Bxd4 {[%clk 0:00:20]}  Qxd4 {[%clk 0:00:21]} 32. Qb8+ {[%clk 0:00:20]}  Kg7 {[%clk 0:00:22]} 33. Qf4 {[%clk 0:00:21]}  Qxf4 {[%clk 0:00:15]} 34. gxf4 {[%clk 0:00:21]}  Kf6 {[%clk 0:00:16]} 35. b4 {[%clk 0:00:19]}  Ke6 {[%clk 0:00:16]} 36. Kg3 {[%clk 0:00:18]}  Kd5 {[%clk 0:00:16]} 37. Kf3 {[%clk 0:00:16]}  Kc4 {[%clk 0:00:16]} 38. a5 {[%clk 0:00:16]}  bxa5 {[%clk 0:00:17]} 39. bxa5 {[%clk 0:00:16]}  Kb5 {[%clk 0:00:17]} 40. Ke4 {[%clk 0:00:16]}  Kxa5 {[%clk 0:00:18]} 41. f5 {[%clk 0:00:16]}  Kb5 {[%clk 0:00:18]} 42. fxg6 {[%clk 0:00:14]}  hxg6 {[%clk 0:00:18]} 43. f4 {[%clk 0:00:15]}  Kc5 {[%clk 0:00:19]} 44. f5 {[%clk 0:00:15]}  Kd6 {[%clk 0:00:19]} 45. Kf4 {[%clk 0:00:11]}  Kd7 {[%clk 0:00:06]} 46. Kg5 {[%clk 0:00:08]}  e5 {[%clk 0:00:05]} 47. fxg6 {[%clk 0:00:04]}  fxg6 {[%clk 0:00:05]} 48. Kxg6 {[%clk 0:00:04]}  e4 {[%clk 0:00:05]} 49. h5 {[%clk 0:00:05]}  e3 {[%clk 0:00:06]} 50. h6 {[%clk 0:00:06]}  e2 {[%clk 0:00:07]} 51. h7 {[%clk 0:00:06]}  e1=Q {[%clk 0:00:08]} 52. h8=Q {[%clk 0:00:07]}  Qg3+ {[%clk 0:00:08]} 53. Kf5 {[%clk 0:00:07]}  Qf3+ {[%clk 0:00:08]} 54. Kg5 {[%clk 0:00:06]}  Qg3+ {[%clk 0:00:09]} 55. Kf5 {[%clk 0:00:07]}  Qf2+ {[%clk 0:00:09]} 56. Kg5 {[%clk 0:00:07]}  Qe3+ {[%clk 0:00:07]} 57. Kf5 {[%clk 0:00:07]}  Qe6+ {[%clk 0:00:08]} 58. Kg5 {[%clk 0:00:07]}  Qd5+ {[%clk 0:00:07]} 59. Kg4 {[%clk 0:00:06]}  Qe4+ {[%clk 0:00:07]} 60. Kg5 {[%clk 0:00:07]}  Qe7+ {[%clk 0:00:07]} 61. Qf6 {[%clk 0:00:06]}  Qxf6+ {[%clk 0:00:06]} 62. Kxf6 {[%clk 0:00:07]} 1/2-1/2


[Site "https://www.chess.com"]

[Event "Titled Tuesday Blitz December 7 2021"]
[White "Demchenko, Anton"]
[Black "Halkias, Stelios"]
[WhiteFideId "4160258"]
[BlackFideId "4201809"]
[WhiteElo "2898"]
[BlackElo "2663"]
[Result "1-0"]
[Round "08"]
[TimeControl "180+1"]
[Date "2021.12.07"]
[WhiteClock "0:00:07"]
[BlackClock "0:00:09"]

1. e4 {[%clk 0:03:00]}  c5 {[%clk 0:02:59]} 2. Nf3 {[%clk 0:03:00]}  d6 {[%clk 0:02:59]} 3. d4 {[%clk 0:02:55]}  cxd4 {[%clk 0:02:59]} 4. Qxd4 {[%clk 0:02:56]}  Nc6 {[%clk 0:02:56]} 5. Qe3 {[%clk 0:02:57]}  Nf6 {[%clk 0:02:55]} 6. Nc3 {[%clk 0:02:56]}  e6 {[%clk 0:02:52]} 7. b3 {[%clk 0:02:56]}  Be7 {[%clk 0:02:50]} 8. Bb2 {[%clk 0:02:56]}  O-O {[%clk 0:02:50]} 9. O-O-O {[%clk 0:02:57]}  d5 {[%clk 0:02:42]} 10. Bc4 {[%clk 0:02:32]}  Nb4 {[%clk 0:02:32]} 11. exd5 {[%clk 0:02:14]}  exd5 {[%clk 0:02:31]} 12. Rhe1 {[%clk 0:02:13]}  Be6 {[%clk 0:02:09]} 13. Nd4 {[%clk 0:02:04]}  Bc5 {[%clk 0:01:57]} 14. Na4 {[%clk 0:01:52]}  Bxd4 {[%clk 0:01:41]} 15. Rxd4 {[%clk 0:01:53]}  Qa5 {[%clk 0:01:25]} 16. Bd3 {[%clk 0:01:21]}  Rfe8 {[%clk 0:00:57]} 17. Qd2 {[%clk 0:00:54]}  Nxa2+ {[%clk 0:00:42]} 18. Kd1 {[%clk 0:00:55]}  Qb6 {[%clk 0:00:42]} 19. f3 {[%clk 0:00:47]}  Qd6 {[%clk 0:00:35]} 20. Rh4 {[%clk 0:00:41]}  Bd7 {[%clk 0:00:26]} 21. Qg5 {[%clk 0:00:35]}  Rxe1+ {[%clk 0:00:24]} 22. Kxe1 {[%clk 0:00:36]}  Kf8 {[%clk 0:00:15]} 23. Bxh7 {[%clk 0:00:29]}  Re8+ {[%clk 0:00:15]} 24. Kf1 {[%clk 0:00:30]}  Nb4 {[%clk 0:00:11]} 25. Bf5 {[%clk 0:00:14]}  Bb5+ {[%clk 0:00:11]} 26. Kf2 {[%clk 0:00:14]}  Nxc2 {[%clk 0:00:09]} 27. Rh8+ {[%clk 0:00:10]}  Ke7 {[%clk 0:00:08]} 28. Rxe8+ {[%clk 0:00:08]}  Kxe8 {[%clk 0:00:07]} 29. Bxc2 {[%clk 0:00:08]}  Bxa4 {[%clk 0:00:08]} 30. bxa4 {[%clk 0:00:08]}  Qb6+ {[%clk 0:00:08]} 31. Qe3+ {[%clk 0:00:08]}  Qxe3+ {[%clk 0:00:08]} 32. Kxe3 {[%clk 0:00:09]}  Nd7 {[%clk 0:00:08]} 33. Bxg7 {[%clk 0:00:09]}  f6 {[%clk 0:00:09]} 34. Bh6 {[%clk 0:00:09]}  Kf7 {[%clk 0:00:09]} 35. Bf4 {[%clk 0:00:09]}  Ke6 {[%clk 0:00:10]} 36. g4 {[%clk 0:00:09]}  Nb6 {[%clk 0:00:10]} 37. Kd4 {[%clk 0:00:08]}  Nc4 {[%clk 0:00:10]} 38. Bf5+ {[%clk 0:00:08]}  Kf7 {[%clk 0:00:10]} 39. h4 {[%clk 0:00:09]}  Nb6 {[%clk 0:00:10]} 40. a5 {[%clk 0:00:09]}  Nc4 {[%clk 0:00:10]} 41. Bc7 {[%clk 0:00:08]}  b5 {[%clk 0:00:09]} 42. Kxd5 {[%clk 0:00:07]}  Ne3+ {[%clk 0:00:09]} 43. Ke4 {[%clk 0:00:07]}  Ng2 {[%clk 0:00:09]} 44. h5 {[%clk 0:00:07]} 1-0


[Site "https://www.chess.com"]

[Event "Titled Tuesday Blitz December 7 2021"]
[White "Durarbayli, Vasif"]
[Black "Piesik, Piotr"]
[WhiteFideId "13402935"]
[BlackFideId "1136194"]
[WhiteElo "2851"]
[BlackElo "2717"]
[Result "1-0"]
[Round "08"]
[TimeControl "180+1"]
[Date "2021.12.07"]
[WhiteClock "0:00:15"]
[BlackClock "0:00:45"]

1. e4 {[%clk 0:03:00]}  g6 {[%clk 0:02:58]} 2. d4 {[%clk 0:03:00]}  Bg7 {[%clk 0:02:59]} 3. Nc3 {[%clk 0:03:00]}  c6 {[%clk 0:02:59]} 4. Be3 {[%clk 0:02:55]}  d5 {[%clk 0:02:59]} 5. e5 {[%clk 0:02:56]}  Nh6 {[%clk 0:02:58]} 6. f4 {[%clk 0:02:49]}  Bg4 {[%clk 0:02:58]} 7. Nf3 {[%clk 0:02:45]}  Nf5 {[%clk 0:02:57]} 8. Bf2 {[%clk 0:02:45]}  h5 {[%clk 0:02:57]} 9. Qd3 {[%clk 0:02:40]}  Bxf3 {[%clk 0:02:56]} 10. Qxf3 {[%clk 0:02:41]}  h4 {[%clk 0:02:49]} 11. O-O-O {[%clk 0:02:34]}  e6 {[%clk 0:02:49]} 12. g4 {[%clk 0:02:33]}  hxg3 {[%clk 0:02:49]} 13. hxg3 {[%clk 0:02:34]}  Rxh1 {[%clk 0:02:49]} 14. Qxh1 {[%clk 0:02:35]}  Nd7 {[%clk 0:02:48]} 15. g4 {[%clk 0:02:15]}  Nh6 {[%clk 0:02:29]} 16. Be2 {[%clk 0:02:09]}  Qa5 {[%clk 0:02:25]} 17. Bh4 {[%clk 0:02:06]}  Ng8 {[%clk 0:02:20]} 18. f5 {[%clk 0:02:00]}  Bh6+ {[%clk 0:02:03]} 19. Kb1 {[%clk 0:01:58]}  g5 {[%clk 0:02:03]} 20. Be1 {[%clk 0:01:39]}  Qd8 {[%clk 0:01:47]} 21. Qh5 {[%clk 0:01:29]}  Qe7 {[%clk 0:01:47]} 22. f6 {[%clk 0:01:06]}  Qf8 {[%clk 0:01:47]} 23. Bd3 {[%clk 0:01:04]}  O-O-O {[%clk 0:01:45]} 24. Ne2 {[%clk 0:00:47]}  Ngxf6 {[%clk 0:01:32]} 25. exf6 {[%clk 0:00:46]}  Nxf6 {[%clk 0:01:33]} 26. Qh2 {[%clk 0:00:46]}  Nxg4 {[%clk 0:01:31]} 27. Qg3 {[%clk 0:00:36]}  f5 {[%clk 0:01:31]} 28. Ba5 {[%clk 0:00:30]}  Rd7 {[%clk 0:01:30]} 29. Rh1 {[%clk 0:00:29]}  Bg7 {[%clk 0:01:25]} 30. Bd2 {[%clk 0:00:26]}  Bf6 {[%clk 0:01:20]} 31. c3 {[%clk 0:00:23]}  Qd6 {[%clk 0:01:18]} 32. Qf3 {[%clk 0:00:17]}  Rg7 {[%clk 0:01:12]} 33. Ng3 {[%clk 0:00:17]}  Kc7 {[%clk 0:01:00]} 34. Bxf5 {[%clk 0:00:16]}  exf5 {[%clk 0:00:48]} 35. Nxf5 {[%clk 0:00:17]}  Nh2 {[%clk 0:00:45]} 36. Qg2 {[%clk 0:00:15]} 1-0


[Site "https://www.chess.com"]

[Event "Titled Tuesday Blitz December 7 2021"]
[White "Dzhaparov, Medet"]
[Black "Mirzanurov, Bulat"]
[WhiteFideId "13803689"]
[BlackFideId "4184521"]
[WhiteElo "1702"]
[BlackElo "2116"]
[Result "1-0"]
[Round "08"]
[TimeControl "180+1"]
[Date "2021.12.07"]
[WhiteClock "0:00:08"]
[BlackClock "0:00:59"]

1. e4 {[%clk 0:03:00]}  c5 {[%clk 0:02:58]} 2. Nf3 {[%clk 0:02:59]}  d6 {[%clk 0:02:59]} 3. d4 {[%clk 0:02:59]}  cxd4 {[%clk 0:02:59]} 4. Nxd4 {[%clk 0:02:59]}  Nf6 {[%clk 0:03:00]} 5. Nc3 {[%clk 0:03:00]}  a6 {[%clk 0:03:01]} 6. Bg5 {[%clk 0:03:00]}  e6 {[%clk 0:02:59]} 7. f4 {[%clk 0:03:00]}  h6 {[%clk 0:02:56]} 8. Bh4 {[%clk 0:02:59]}  Qb6 {[%clk 0:02:55]} 9. Qd3 {[%clk 0:01:38]}  Qxb2 {[%clk 0:02:47]} 10. Rb1 {[%clk 0:01:38]}  Qa3 {[%clk 0:02:46]} 11. f5 {[%clk 0:01:38]}  Qa5 {[%clk 0:02:20]} 12. fxe6 {[%clk 0:01:30]}  fxe6 {[%clk 0:02:18]} 13. Be2 {[%clk 0:01:29]}  Nc6 {[%clk 0:02:12]} 14. Nxc6 {[%clk 0:01:22]}  bxc6 {[%clk 0:02:10]} 15. O-O {[%clk 0:01:07]}  Be7 {[%clk 0:02:05]} 16. Kh1 {[%clk 0:00:34]}  O-O {[%clk 0:01:59]} 17. Qc4 {[%clk 0:00:32]}  Bd7 {[%clk 0:01:52]} 18. Rb7 {[%clk 0:00:32]}  Rfd8 {[%clk 0:01:47]} 19. Rxd7 {[%clk 0:00:12]}  Rxd7 {[%clk 0:01:43]} 20. Qxe6+ {[%clk 0:00:10]}  Kh8 {[%clk 0:01:42]} 21. Bxf6 {[%clk 0:00:03]}  Bxf6 {[%clk 0:01:37]} 22. Qxd7 {[%clk 0:00:03]}  Qxc3 {[%clk 0:01:37]} 23. Qxd6 {[%clk 0:00:02]}  Be5 {[%clk 0:01:35]} 24. Qd3 {[%clk 0:00:02]}  Rb8 {[%clk 0:01:29]} 25. Qxc3 {[%clk 0:00:02]}  Bxc3 {[%clk 0:01:29]} 26. Bxa6 {[%clk 0:00:03]}  Rb2 {[%clk 0:01:28]} 27. Bd3 {[%clk 0:00:03]}  Rxa2 {[%clk 0:01:28]} 28. Rf8+ {[%clk 0:00:03]}  Kh7 {[%clk 0:01:27]} 29. e5+ {[%clk 0:00:03]}  g6 {[%clk 0:01:27]} 30. Rf7+ {[%clk 0:00:03]}  Kg8 {[%clk 0:01:27]} 31. e6 {[%clk 0:00:04]}  Ra1+ {[%clk 0:01:26]} 32. Bf1 {[%clk 0:00:05]}  Re1 {[%clk 0:01:19]} 33. Rf3 {[%clk 0:00:05]}  Bg7 {[%clk 0:01:12]} 34. g3 {[%clk 0:00:05]}  Rxe6 {[%clk 0:01:11]} 35. Bc4 {[%clk 0:00:05]}  Be5 {[%clk 0:01:02]} 36. Bxe6+ {[%clk 0:00:06]}  Kg7 {[%clk 0:01:03]} 37. Rf7+ {[%clk 0:00:06]}  Kh8 {[%clk 0:01:03]} 38. Kg2 {[%clk 0:00:07]}  g5 {[%clk 0:01:03]} 39. c4 {[%clk 0:00:08]}  c5 {[%clk 0:01:02]} 40. Kf3 {[%clk 0:00:08]}  Bd4 {[%clk 0:01:00]} 41. Ke4 {[%clk 0:00:08]}  Bc3 {[%clk 0:00:59]} 42. Kf5 {[%clk 0:00:08]}  Bd4 {[%clk 0:00:59]} 43. Kg6 {[%clk 0:00:09]}  Bg7 {[%clk 0:00:58]} 44. Rxg7 {[%clk 0:00:08]}  h5 {[%clk 0:00:59]} 45. Rh7# {[%clk 0:00:08]} 1-0


[Site "https://www.chess.com"]